[Event "*** Titled Tuesday Blitz"]
[Site "Chess.com"]
[Date "2019.11.05"]
[Round "10"]
[White "Oligan22"]
[Black "FelixJoseYnojosa"]
[Result "0-1"]
[WhiteElo "2475"]
[BlackElo "2650"]
[TimeControl "180+2"]
[EndTime "15:19:42 PST"]
[Termination "FelixJoseYnojosa won by resignation"]

1. e4 {[%clk 0:03:01.9]} 1... c5 {[%clk 0:03:01.9]} 2. Nf3 {[%clk 0:03:02.9]}
2... Nc6 {[%clk 0:03:00.8]} 3. d4 {[%clk 0:03:03.9]} 3... cxd4 {[%clk
0:03:02.7]} 4. Nxd4 {[%clk 0:03:05.6]} 4... e5 {[%clk 0:03:03.8]} 5. Nb5 {[%clk
0:03:06.3]} 5... d6 {[%clk 0:03:05]} 6. N1c3 {[%clk 0:03:05.7]} 6... a6 {[%clk
0:03:05.6]} 7. Na3 {[%clk 0:03:06.8]} 7... b5 {[%clk 0:03:06.3]} 8. Nd5 {[%clk
0:03:07.6]} 8... Nf6 {[%clk 0:03:06.9]} 9. Bg5 {[%clk 0:03:07.3]} 9... Be7
{[%clk 0:03:07.8]} 10. Bxf6 {[%clk 0:03:07.8]} 10... Bxf6 {[%clk 0:03:08.7]} 11.
c3 {[%clk 0:03:09.3]} 11... Bg5 {[%clk 0:03:08.3]} 12. Nc2 {[%clk 0:03:10.1]}
12... Rb8 {[%clk 0:03:01.3]} 13. a3 {[%clk 0:02:59.9]} 13... Be6 {[%clk
0:02:58.7]} 14. Ncb4 {[%clk 0:02:59.7]} 14... Nxb4 {[%clk 0:02:56.3]} 15. axb4
{[%clk 0:03:00.7]} 15... Qc8 {[%clk 0:02:41]} 16. Be2 {[%clk 0:02:50.2]} 16...
O-O {[%clk 0:02:40.7]} 17. O-O {[%clk 0:02:47.4]} 17... g6 {[%clk 0:02:41.4]}
18. Qd3 {[%clk 0:02:31.7]} 18... Kg7 {[%clk 0:02:40.4]} 19. Ra3 {[%clk 0:02:19]}
19... f5 {[%clk 0:02:32.3]} 20. Bf3 {[%clk 0:02:17.3]} 20... Bd8 {[%clk
0:02:28.5]} 21. Rfa1 {[%clk 0:02:16.1]} 21... Ra8 {[%clk 0:02:18.6]} 22. Ne3
{[%clk 0:02:08.7]} 22... f4 {[%clk 0:02:11.6]} 23. Nd5 {[%clk 0:02:08.2]} 23...
Ra7 {[%clk 0:02:05.9]} 24. h3 {[%clk 0:02:03.2]} 24... h5 {[%clk 0:01:58.9]} 25.
Qd1 {[%clk 0:02:03.1]} 25... Kh6 {[%clk 0:01:58.7]} 26. Qd3 {[%clk 0:01:59.4]}
26... g5 {[%clk 0:01:58.3]} 27. Bd1 {[%clk 0:01:16.9]} 27... g4 {[%clk
0:01:58.1]} 28. Kh2 {[%clk 0:01:12.4]} 28... Rg8 {[%clk 0:01:46.1]} 29. h4
{[%clk 0:00:42.9]} 29... g3+ {[%clk 0:01:41.6]} 30. fxg3 {[%clk 0:00:36.7]}
30... Rxg3 {[%clk 0:01:43.5]} 31. Bf3 {[%clk 0:00:37.5]} 31... Bg4 {[%clk
0:01:41.7]} 32. Nxf4 {[%clk 0:00:35.7]} 32... exf4 {[%clk 0:01:31.2]} 33. Qxd6+
{[%clk 0:00:36.5]} 33... Kh7 {[%clk 0:00:57.7]} 34. Rxa6 {[%clk 0:00:37.2]}
34... Rg7 {[%clk 0:00:47.9]} 35. Qxf4 {[%clk 0:00:31.3]} 35... Bxf3 {[%clk
0:00:47.1]} 36. Qxg3 {[%clk 0:00:16.1]} 36... Rxg3 {[%clk 0:00:47.2]} 37. Kxg3
{[%clk 0:00:18]} 37... Bxe4 {[%clk 0:00:47.2]} 38. Ra7+ {[%clk 0:00:18.3]} 38...
Kh8 {[%clk 0:00:47.4]} 39. Re1 {[%clk 0:00:14.9]} 39... Qg4+ {[%clk 0:00:48]}
40. Kf2 {[%clk 0:00:15.8]} 40... Bb6+ {[%clk 0:00:47.9]} 0-1

[Event "*** Titled Tuesday Blitz"]
[Site "Chess.com"]
[Date "2019.11.05"]
[Round "10"]
[White "Tsschessulover"]
[Black "Vojtap"]
[Result "1-0"]
[WhiteElo "2419"]
[BlackElo "2180"]
[TimeControl "180+2"]
[EndTime "15:19:54 PST"]
[Termination "Tsschessulover won by resignation"]

1. d4 {[%clk 0:03:01.9]} 1... Nf6 {[%clk 0:02:59.5]} 2. c4 {[%clk 0:03:03.1]}
2... c5 {[%clk 0:03:00]} 3. d5 {[%clk 0:03:02.6]} 3... e6 {[%clk 0:03:00.7]} 4.
Nc3 {[%clk 0:02:59.8]} 4... exd5 {[%clk 0:03:02.6]} 5. cxd5 {[%clk 0:03:01.7]}
5... d6 {[%clk 0:03:03.6]} 6. e4 {[%clk 0:03:02.2]} 6... g6 {[%clk 0:03:04.9]}
7. f4 {[%clk 0:03:03.5]} 7... Bg7 {[%clk 0:03:04.9]} 8. Bb5+ {[%clk 0:03:05]}
8... Nfd7 {[%clk 0:03:05.9]} 9. Bd3 {[%clk 0:03:05]} 9... Qh4+ {[%clk
0:03:00.5]} 10. g3 {[%clk 0:03:05.5]} 10... Qd8 {[%clk 0:03:01.3]} 11. Nf3
{[%clk 0:03:06.5]} 11... O-O {[%clk 0:03:02.3]} 12. O-O {[%clk 0:03:07.5]} 12...
Na6 {[%clk 0:02:53.7]} 13. h3 {[%clk 0:03:04.3]} 13... Nc7 {[%clk 0:02:47.8]}
14. Kg2 {[%clk 0:03:03.5]} 14... Rb8 {[%clk 0:02:47]} 15. a4 {[%clk 0:03:03.9]}
15... a6 {[%clk 0:02:46.9]} 16. a5 {[%clk 0:02:54]} 16... b5 {[%clk 0:02:47.3]}
17. axb6 {[%clk 0:02:53.8]} 17... Rxb6 {[%clk 0:02:45]} 18. Qc2 {[%clk
0:02:52.4]} 18... Nb5 {[%clk 0:02:44.8]} 19. Bd2 {[%clk 0:02:51.7]} 19... Qc7
{[%clk 0:02:28.6]} 20. Nxb5 {[%clk 0:02:49.4]} 20... axb5 {[%clk 0:02:27.9]} 21.
Bc3 {[%clk 0:02:50.9]} 21... Nf6 {[%clk 0:02:22.8]} 22. Ba5 {[%clk 0:02:50.1]}
22... Qd7 {[%clk 0:01:57.1]} 23. Bxb6 {[%clk 0:02:47]} 23... Qxh3+ {[%clk
0:01:57.7]} 24. Kf2 {[%clk 0:02:42]} 24... Ng4+ {[%clk 0:01:58.3]} 25. Kg1
{[%clk 0:01:26.4]} 25... c4 {[%clk 0:01:36.5]} 26. Bxc4 {[%clk 0:01:22.8]} 26...
bxc4 {[%clk 0:01:31.2]} 27. Qg2 {[%clk 0:01:23.7]} 27... Qxg2+ {[%clk
0:01:28.7]} 28. Kxg2 {[%clk 0:01:25.6]} 28... Bxb2 {[%clk 0:01:29.1]} 29. Ra2
{[%clk 0:01:15.2]} 29... c3 {[%clk 0:01:30.1]} 30. Bd4 {[%clk 0:01:14.8]} 30...
Bd7 {[%clk 0:01:26.1]} 31. Ra7 {[%clk 0:01:13.4]} 31... Bb5 {[%clk 0:01:24.9]}
32. Rh1 {[%clk 0:01:14.9]} 32... Bd3 {[%clk 0:01:15.9]} 33. Ng5 {[%clk
0:01:13.5]} 33... h5 {[%clk 0:01:08.4]} 34. Rc7 {[%clk 0:01:12.1]} 34... Ra8
{[%clk 0:00:27.4]} 35. Kf3 {[%clk 0:01:04.9]} 35... Nh6 {[%clk 0:00:21.3]} 36.
f5 {[%clk 0:01:02.2]} 36... Ra2 {[%clk 0:00:18.1]} 37. fxg6 {[%clk 0:01:01.6]}
37... Be2+ {[%clk 0:00:15.7]} 38. Kxe2 {[%clk 0:01:00.9]} 38... Ba3+ {[%clk
0:00:16.2]} 39. Kf3 {[%clk 0:00:59.7]} 39... c2 {[%clk 0:00:11.1]} 40. gxf7+
{[%clk 0:00:59.7]} 40... Kf8 {[%clk 0:00:11.1]} 41. Rc8+ {[%clk 0:01:00.6]}
41... Ke7 {[%clk 0:00:11.7]} 42. f8=Q+ {[%clk 0:01:02.5]} 1-0

[Event "*** Titled Tuesday Blitz"]
[Site "Chess.com"]
[Date "2019.11.05"]
[Round "10"]
[White "DishonorOnYourCow"]
[Black "newauto"]
[Result "1-0"]
[WhiteElo "2270"]
[BlackElo "1928"]
[TimeControl "180+2"]
[EndTime "15:19:55 PST"]
[Termination "DishonorOnYourCow won by resignation"]

1. d4 {[%clk 0:03:01.9]} 1... c6 {[%clk 0:03:01.9]} 2. c4 {[%clk 0:02:59.9]}
2... d5 {[%clk 0:03:03.8]} 3. Nf3 {[%clk 0:02:58.9]} 3... Nf6 {[%clk 0:03:04.7]}
4. cxd5 {[%clk 0:02:55.6]} 4... cxd5 {[%clk 0:03:05.1]} 5. Nc3 {[%clk
0:02:56.2]} 5... Nc6 {[%clk 0:03:06.4]} 6. Bf4 {[%clk 0:02:57.1]} 6... Bf5
{[%clk 0:03:05.1]} 7. e3 {[%clk 0:02:58.3]} 7... e6 {[%clk 0:03:05.3]} 8. Bb5
{[%clk 0:02:58.8]} 8... Rc8 {[%clk 0:03:01.9]} 9. Ne5 {[%clk 0:02:56.3]} 9...
Be7 {[%clk 0:03:01.3]} 10. O-O {[%clk 0:02:44.5]} 10... O-O {[%clk 0:03:01.5]}
11. Nxc6 {[%clk 0:02:45.5]} 11... bxc6 {[%clk 0:03:01]} 12. Ba6 {[%clk
0:02:46.4]} 12... Ra8 {[%clk 0:02:48.2]} 13. Bb7 {[%clk 0:02:46.8]} 13... Qb6
{[%clk 0:02:47.5]} 14. Bxa8 {[%clk 0:02:46.8]} 14... Rxa8 {[%clk 0:02:47.6]} 15.
Na4 {[%clk 0:02:47.3]} 15... Qb5 {[%clk 0:02:44.1]} 16. b3 {[%clk 0:02:46.6]}
16... Nd7 {[%clk 0:02:35.8]} 17. Rc1 {[%clk 0:02:45.8]} 17... c5 {[%clk
0:02:30.4]} 18. dxc5 {[%clk 0:02:46]} 18... Nxc5 {[%clk 0:02:30.1]} 19. Nxc5
{[%clk 0:02:46.4]} 19... Bxc5 {[%clk 0:02:27.7]} 20. Qd2 {[%clk 0:02:41.8]}
20... Bb4 {[%clk 0:02:10.8]} 21. Qd4 {[%clk 0:02:33.1]} 21... Ba3 {[%clk
0:01:57.3]} 22. Rc7 {[%clk 0:02:27.6]} 22... f6 {[%clk 0:01:36]} 23. Qc3 {[%clk
0:02:12.7]} 23... e5 {[%clk 0:01:30.7]} 24. Bg3 {[%clk 0:02:08.6]} 24... Bb4
{[%clk 0:01:25.9]} 25. Qb2 {[%clk 0:02:08.3]} 25... Bd6 {[%clk 0:01:16.7]} 26.
Rcc1 {[%clk 0:02:00.4]} 26... a5 {[%clk 0:01:04.4]} 27. Rfd1 {[%clk 0:01:55]}
27... a4 {[%clk 0:00:50.1]} 28. b4 {[%clk 0:01:10.4]} 28... a3 {[%clk
0:00:39.4]} 29. Qb3 {[%clk 0:01:09.6]} 29... Be6 {[%clk 0:00:39]} 30. e4 {[%clk
0:01:07.5]} 30... Qxb4 {[%clk 0:00:33.3]} 31. Qxb4 {[%clk 0:01:07.2]} 31... Bxb4
{[%clk 0:00:33.6]} 32. exd5 {[%clk 0:01:08.2]} 32... Bf7 {[%clk 0:00:31.5]} 33.
f3 {[%clk 0:00:59.9]} 33... Rd8 {[%clk 0:00:26.6]} 34. Rc4 {[%clk 0:00:54.2]}
34... Ba5 {[%clk 0:00:19.6]} 35. Ra4 {[%clk 0:00:53.8]} 35... Bb6+ {[%clk
0:00:20.3]} 36. Bf2 {[%clk 0:00:54.7]} 36... Bxf2+ {[%clk 0:00:20.5]} 37. Kxf2
{[%clk 0:00:56.6]} 37... Rxd5 {[%clk 0:00:20.5]} 38. Rxd5 {[%clk 0:00:57.2]}
38... Bxd5 {[%clk 0:00:21]} 39. Rxa3 {[%clk 0:00:58.4]} 39... Kf7 {[%clk
0:00:21.5]} 40. Ra7+ {[%clk 0:00:59.3]} 40... Kg6 {[%clk 0:00:21.5]} 41. a4
{[%clk 0:01:00.3]} 41... f5 {[%clk 0:00:21.4]} 42. a5 {[%clk 0:01:01.3]} 42...
Kg5 {[%clk 0:00:21.5]} 43. Rxg7+ {[%clk 0:01:00.8]} 43... Kf6 {[%clk 0:00:22.1]}
44. Rxh7 {[%clk 0:01:01.6]} 44... e4 {[%clk 0:00:22.9]} 45. fxe4 {[%clk
0:01:02.1]} 45... Bxe4 {[%clk 0:00:22.6]} 46. a6 {[%clk 0:01:02.7]} 46... Kg6
{[%clk 0:00:22.7]} 47. Re7 {[%clk 0:01:02.9]} 47... Bd5 {[%clk 0:00:20.7]} 48.
a7 {[%clk 0:01:02.5]} 48... Kf6 {[%clk 0:00:21.6]} 49. Re8 {[%clk 0:01:03.2]}
1-0

[Event "*** Titled Tuesday Blitz"]
[Site "Chess.com"]
[Date "2019.11.05"]
[Round "10"]
[White "novocane"]
[Black "boasovietica"]
[Result "0-1"]
[WhiteElo "2183"]
[BlackElo "2432"]
[TimeControl "180+2"]
[EndTime "15:20:10 PST"]
[Termination "boasovietica won by resignation"]

1. d4 {[%clk 0:03:01.8]} 1... Nf6 {[%clk 0:02:59.5]} 2. c4 {[%clk 0:03:02.5]}
2... g6 {[%clk 0:02:59.3]} 3. Nc3 {[%clk 0:03:03.5]} 3... Bg7 {[%clk 0:03:00.7]}
4. e4 {[%clk 0:03:05]} 4... c5 {[%clk 0:03:02]} 5. d5 {[%clk 0:03:05.6]} 5... d6
{[%clk 0:03:01.5]} 6. f3 {[%clk 0:03:06.4]} 6... O-O {[%clk 0:03:01.4]} 7. Bg5
{[%clk 0:03:06.9]} 7... e6 {[%clk 0:03:02.6]} 8. Qd2 {[%clk 0:03:07.8]} 8...
exd5 {[%clk 0:03:03.6]} 9. cxd5 {[%clk 0:03:09.7]} 9... h6 {[%clk 0:02:58.6]}
10. Be3 {[%clk 0:03:10.5]} 10... Nh5 {[%clk 0:02:52.8]} 11. g4 {[%clk
0:02:51.7]} 11... Nf6 {[%clk 0:02:47.6]} 12. h4 {[%clk 0:02:41.3]} 12... h5
{[%clk 0:02:46.5]} 13. O-O-O {[%clk 0:02:34.5]} 13... b5 {[%clk 0:02:41.6]} 14.
Bxb5 {[%clk 0:02:22.6]} 14... Qb6 {[%clk 0:02:37.9]} 15. Bh6 {[%clk 0:02:16.4]}
15... Bxh6 {[%clk 0:02:31.7]} 16. Qxh6 {[%clk 0:02:14.5]} 16... Ba6 {[%clk
0:02:32.3]} 17. Be2 {[%clk 0:01:57.2]} 17... Nbd7 {[%clk 0:02:25.9]} 18. Rd2
{[%clk 0:01:36]} 18... Rab8 {[%clk 0:02:12.3]} 19. Nh3 {[%clk 0:01:28.6]} 19...
Bxe2 {[%clk 0:02:01]} 20. Rxe2 {[%clk 0:01:28.6]} 20... Ne5 {[%clk 0:02:00.8]}
21. gxh5 {[%clk 0:00:40.7]} 21... Nd3+ {[%clk 0:01:53.7]} 22. Kd1 {[%clk
0:00:39]} 22... Nxb2+ {[%clk 0:01:43.5]} 23. Ke1 {[%clk 0:00:18.1]} 23... Qb4
{[%clk 0:01:32.7]} 24. Rc2 {[%clk 0:00:18.4]} 24... Nd3+ {[%clk 0:01:23.7]} 25.
Kd2 {[%clk 0:00:09.1]} 25... Ne5 {[%clk 0:01:09.2]} 26. hxg6 {[%clk 0:00:07.9]}
26... Qd4+ {[%clk 0:01:07.5]} 27. Kc1 {[%clk 0:00:06]} 27... Nd3+ {[%clk
0:01:02]} 28. Kd2 {[%clk 0:00:04.9]} 28... Ne5+ {[%clk 0:00:52.3]} 29. Kc1
{[%clk 0:00:05.9]} 29... fxg6 {[%clk 0:00:53.3]} 30. Rg1 {[%clk 0:00:05.7]}
30... Rf7 {[%clk 0:00:44.4]} 31. Ng5 {[%clk 0:00:06.5]} 31... Qxg1+ {[%clk
0:00:44.4]} 32. Kd2 {[%clk 0:00:07.3]} 32... Qd4+ {[%clk 0:00:39.8]} 33. Kc1
{[%clk 0:00:06.9]} 33... Nd3+ {[%clk 0:00:38.8]} 34. Kd2 {[%clk 0:00:08.3]}
34... Nb4+ {[%clk 0:00:36.9]} 35. Ke2 {[%clk 0:00:07.8]} 35... Qd3+ {[%clk
0:00:32.1]} 36. Ke1 {[%clk 0:00:07.7]} 36... Nxc2+ {[%clk 0:00:32.8]} 0-1

[Event "*** Titled Tuesday Blitz"]
[Site "Chess.com"]
[Date "2019.11.05"]
[Round "10"]
[White "HarutyunianTigranK"]
[Black "SerGo055"]
[Result "1-0"]
[WhiteElo "2828"]
[BlackElo "2566"]
[TimeControl "180+2"]
[EndTime "15:20:12 PST"]
[Termination "HarutyunianTigranK won by checkmate"]

1. c4 {[%clk 0:03:01.9]} 1... g6 {[%clk 0:02:59.4]} 2. Nf3 {[%clk 0:03:00.2]}
2... Bg7 {[%clk 0:03:00.7]} 3. d4 {[%clk 0:03:01.5]} 3... Nf6 {[%clk 0:03:01.3]}
4. g3 {[%clk 0:03:02.5]} 4... c5 {[%clk 0:03:02.6]} 5. Bg2 {[%clk 0:03:03.2]}
5... O-O {[%clk 0:03:03.3]} 6. O-O {[%clk 0:03:03.8]} 6... d6 {[%clk 0:03:03.1]}
7. Nc3 {[%clk 0:03:04.8]} 7... Nc6 {[%clk 0:03:02.5]} 8. d5 {[%clk 0:03:06.3]}
8... Nb8 {[%clk 0:03:01.7]} 9. e4 {[%clk 0:03:03.7]} 9... a6 {[%clk 0:03:01.9]}
10. Re1 {[%clk 0:03:04.8]} 10... Nbd7 {[%clk 0:03:02.4]} 11. e5 {[%clk
0:02:48.2]} 11... dxe5 {[%clk 0:02:25.1]} 12. Nxe5 {[%clk 0:02:46.5]} 12... Nxe5
{[%clk 0:02:27]} 13. Rxe5 {[%clk 0:02:47]} 13... Ne8 {[%clk 0:02:28.2]} 14. Re1
{[%clk 0:02:39.9]} 14... Nd6 {[%clk 0:02:28.9]} 15. Bg5 {[%clk 0:02:39.6]} 15...
f6 {[%clk 0:02:27.7]} 16. Bf4 {[%clk 0:02:40.2]} 16... Nxc4 {[%clk 0:02:24.8]}
17. Qe2 {[%clk 0:02:32.7]} 17... Ne5 {[%clk 0:02:12.1]} 18. Bxe5 {[%clk
0:02:26.5]} 18... fxe5 {[%clk 0:02:12.8]} 19. Qc4 {[%clk 0:02:23.9]} 19... Bf5
{[%clk 0:01:41.7]} 20. Qxc5 {[%clk 0:02:24.1]} 20... Rc8 {[%clk 0:01:42.4]} 21.
Qb4 {[%clk 0:02:23.8]} 21... b5 {[%clk 0:01:42.7]} 22. a4 {[%clk 0:02:13.5]}
22... Bd3 {[%clk 0:01:13.1]} 23. axb5 {[%clk 0:02:07.1]} 23... axb5 {[%clk
0:01:14.1]} 24. Re3 {[%clk 0:02:06.6]} 24... e4 {[%clk 0:01:08]} 25. Nxe4 {[%clk
0:01:44]} 25... Bxe4 {[%clk 0:00:58.1]} 26. Rxe4 {[%clk 0:01:43.9]} 26... Qd6
{[%clk 0:00:47.8]} 27. Rf1 {[%clk 0:01:00.4]} 27... Rc2 {[%clk 0:00:39.3]} 28.
Qxb5 {[%clk 0:00:53.3]} 28... Rxb2 {[%clk 0:00:36.6]} 29. Qc6 {[%clk 0:00:53.9]}
29... Rd2 {[%clk 0:00:23.1]} 30. Re6 {[%clk 0:00:53.3]} 30... Qd8 {[%clk
0:00:18.5]} 31. Qc1 {[%clk 0:00:47.7]} 31... Qa5 {[%clk 0:00:07.3]} 32. Rxe7
{[%clk 0:00:38.8]} 32... Bd4 {[%clk 0:00:08.3]} 33. Kh1 {[%clk 0:00:39.5]} 33...
Rdxf2 {[%clk 0:00:07.8]} 34. Rxf2 {[%clk 0:00:40.1]} 34... Bxf2 {[%clk
0:00:07.9]} 35. d6 {[%clk 0:00:36.3]} 35... Bc5 {[%clk 0:00:06.8]} 36. Bd5+
{[%clk 0:00:34.2]} 36... Kh8 {[%clk 0:00:06.6]} 37. Qb2+ {[%clk 0:00:34.6]}
37... Bd4 {[%clk 0:00:03.1]} 38. Qxd4+ {[%clk 0:00:35.4]} 38... Rf6 {[%clk
0:00:04.6]} 39. Qxf6# {[%clk 0:00:37.3]} 1-0

[Event "*** Titled Tuesday Blitz"]
[Site "Chess.com"]
[Date "2019.11.05"]
[Round "10"]
[White "CarlssonLudvig"]
[Black "vanyakuba"]
[Result "0-1"]
[WhiteElo "2460"]
[BlackElo "2399"]
[TimeControl "180+2"]
[EndTime "15:20:24 PST"]
[Termination "vanyakuba won by checkmate"]

1. Nf3 {[%clk 0:03:01.9]} 1... f5 {[%clk 0:02:59.3]} 2. d3 {[%clk 0:02:59.5]}
2... d6 {[%clk 0:02:55.9]} 3. e4 {[%clk 0:02:58.2]} 3... e5 {[%clk 0:02:57]} 4.
Nbd2 {[%clk 0:02:30.3]} 4... Nf6 {[%clk 0:02:57.5]} 5. c3 {[%clk 0:02:17.6]}
5... Nc6 {[%clk 0:02:52.6]} 6. Qc2 {[%clk 0:01:45.1]} 6... g6 {[%clk 0:02:52.5]}
7. d4 {[%clk 0:01:39.5]} 7... fxe4 {[%clk 0:02:36]} 8. Nxe4 {[%clk 0:01:39.5]}
8... Nxe4 {[%clk 0:02:37]} 9. Qxe4 {[%clk 0:01:37.6]} 9... d5 {[%clk 0:02:38.3]}
10. Qc2 {[%clk 0:01:01.4]} 10... e4 {[%clk 0:02:39]} 11. Ne5 {[%clk 0:00:57.8]}
11... Nxe5 {[%clk 0:02:21]} 12. dxe5 {[%clk 0:00:58.7]} 12... Bg7 {[%clk
0:02:22.2]} 13. Bf4 {[%clk 0:00:59.7]} 13... O-O {[%clk 0:02:21.2]} 14. Bg3
{[%clk 0:00:58.9]} 14... Qe7 {[%clk 0:02:21]} 15. O-O-O {[%clk 0:00:56.5]} 15...
c6 {[%clk 0:02:16.2]} 16. c4 {[%clk 0:00:52]} 16... Be6 {[%clk 0:01:41.5]} 17.
Kb1 {[%clk 0:00:48.3]} 17... Bf7 {[%clk 0:01:24.5]} 18. cxd5 {[%clk 0:00:42]}
18... cxd5 {[%clk 0:01:23.4]} 19. Qb3 {[%clk 0:00:27]} 19... Bxe5 {[%clk
0:01:11]} 20. Rxd5 {[%clk 0:00:27.4]} 20... Bxg3 {[%clk 0:01:02.4]} 21. hxg3
{[%clk 0:00:29.3]} 21... Bxd5 {[%clk 0:00:56]} 22. Qxd5+ {[%clk 0:00:31.2]}
22... Qf7 {[%clk 0:00:56.7]} 23. Qg5 {[%clk 0:00:23.7]} 23... Rac8 {[%clk
0:00:47]} 24. Qh6 {[%clk 0:00:21.6]} 24... a6 {[%clk 0:00:28.7]} 25. Be2 {[%clk
0:00:21.1]} 25... b5 {[%clk 0:00:28.3]} 26. Bg4 {[%clk 0:00:22.5]} 26... Rc6
{[%clk 0:00:25.6]} 27. Bd1 {[%clk 0:00:19.2]} 27... Qg7 {[%clk 0:00:23.6]} 28.
Bb3+ {[%clk 0:00:20]} 28... Kh8 {[%clk 0:00:24.8]} 29. Qe3 {[%clk 0:00:21.7]}
29... Rcf6 {[%clk 0:00:24.1]} 30. Qxe4 {[%clk 0:00:13.4]} 30... Rxf2 {[%clk
0:00:24.4]} 31. Bc2 {[%clk 0:00:15.3]} 31... Rf1+ {[%clk 0:00:18]} 32. Rxf1
{[%clk 0:00:11.3]} 32... Rxf1+ {[%clk 0:00:19.9]} 33. Bd1 {[%clk 0:00:13]} 33...
Rxd1+ {[%clk 0:00:20.5]} 34. Kc2 {[%clk 0:00:14.9]} 34... Rd8 {[%clk 0:00:17.6]}
35. Qg4 {[%clk 0:00:13.8]} 35... Qc7+ {[%clk 0:00:16.8]} 36. Kb1 {[%clk
0:00:13.2]} 36... Qd7 {[%clk 0:00:13.7]} 37. Qb4 {[%clk 0:00:09.4]} 37... Qd1#
{[%clk 0:00:13.8]} 0-1

[Event "*** Titled Tuesday Blitz"]
[Site "Chess.com"]
[Date "2019.11.05"]
[Round "10"]
[White "SCIM"]
[Black "Shield12"]
[Result "1/2-1/2"]
[WhiteElo "2518"]
[BlackElo "2792"]
[TimeControl "180+2"]
[EndTime "15:20:29 PST"]
[Termination "Game drawn by repetition"]

1. d4 {[%clk 0:02:51.9]} 1... Nf6 {[%clk 0:03:00.5]} 2. c4 {[%clk 0:02:53.3]}
2... e6 {[%clk 0:03:02]} 3. Nc3 {[%clk 0:02:54.4]} 3... Bb4 {[%clk 0:03:02.9]}
4. Qc2 {[%clk 0:02:55.9]} 4... O-O {[%clk 0:03:03.4]} 5. Nf3 {[%clk 0:02:56.7]}
5... d5 {[%clk 0:03:04.4]} 6. cxd5 {[%clk 0:02:58]} 6... exd5 {[%clk 0:03:01.9]}
7. Bf4 {[%clk 0:02:58.9]} 7... c5 {[%clk 0:02:58.5]} 8. dxc5 {[%clk 0:02:57.9]}
8... Be6 {[%clk 0:02:58.9]} 9. e3 {[%clk 0:02:57.4]} 9... Nbd7 {[%clk
0:02:59.7]} 10. Be2 {[%clk 0:02:53.9]} 10... Ne4 {[%clk 0:02:57.9]} 11. O-O
{[%clk 0:02:52.6]} 11... Bxc3 {[%clk 0:02:58.3]} 12. bxc3 {[%clk 0:02:52.8]}
12... Ndxc5 {[%clk 0:02:59.9]} 13. Rfd1 {[%clk 0:02:49.4]} 13... Qa5 {[%clk
0:02:53.7]} 14. Be5 {[%clk 0:02:48.1]} 14... Rac8 {[%clk 0:02:52.5]} 15. Bd4
{[%clk 0:02:42]} 15... Na4 {[%clk 0:02:52.4]} 16. Bd3 {[%clk 0:02:27.1]} 16...
Naxc3 {[%clk 0:02:52.3]} 17. Rdc1 {[%clk 0:02:15.9]} 17... Nb5 {[%clk 0:02:44]}
18. Qb2 {[%clk 0:02:08.9]} 18... Nxd4 {[%clk 0:02:42]} 19. Nxd4 {[%clk
0:02:09.2]} 19... Nc5 {[%clk 0:02:42.9]} 20. Bc2 {[%clk 0:01:57.1]} 20... Bd7
{[%clk 0:02:41.1]} 21. Bf5 {[%clk 0:01:52.6]} 21... Be6 {[%clk 0:02:31]} 22.
Rab1 {[%clk 0:01:51.5]} 22... b6 {[%clk 0:02:19.2]} 23. Rxc5 {[%clk 0:01:27.3]}
23... Rxc5 {[%clk 0:02:05.8]} 24. Bxe6 {[%clk 0:01:25.1]} 24... fxe6 {[%clk
0:02:06.9]} 25. Nxe6 {[%clk 0:01:25]} 25... Qc3 {[%clk 0:02:06]} 26. Nxc5 {[%clk
0:01:17.6]} 26... Qxb2 {[%clk 0:02:06.9]} 27. Rxb2 {[%clk 0:01:18.4]} 27... bxc5
{[%clk 0:02:08.8]} 28. Kf1 {[%clk 0:01:13.8]} 28... Rc8 {[%clk 0:02:07.5]} 29.
Ke2 {[%clk 0:01:13.8]} 29... Rc7 {[%clk 0:02:07.7]} 30. Kd3 {[%clk 0:01:12.8]}
30... Kf7 {[%clk 0:02:08.5]} 31. Rb5 {[%clk 0:01:08.8]} 31... Ke6 {[%clk
0:02:08.5]} 32. a4 {[%clk 0:01:08.9]} 32... g5 {[%clk 0:02:07]} 33. a5 {[%clk
0:01:05.1]} 33... Rc6 {[%clk 0:02:02.1]} 34. e4 {[%clk 0:00:55.4]} 34... Ke5
{[%clk 0:01:59.2]} 35. exd5 {[%clk 0:00:50.8]} 35... Kxd5 {[%clk 0:02:01.1]} 36.
Rb7 {[%clk 0:00:51.7]} 36... Ra6 {[%clk 0:02:00.5]} 37. Rd7+ {[%clk 0:00:51.5]}
37... Kc6 {[%clk 0:02:00.3]} 38. Rxh7 {[%clk 0:00:50.5]} 38... Rxa5 {[%clk
0:02:01.6]} 39. Rg7 {[%clk 0:00:46.8]} 39... Ra3+ {[%clk 0:01:31.3]} 40. Kc4
{[%clk 0:00:44.4]} 40... Ra4+ {[%clk 0:01:28.5]} 41. Kb3 {[%clk 0:00:44.6]}
41... Rb4+ {[%clk 0:01:23.7]} 42. Kc3 {[%clk 0:00:44.6]} 42... a5 {[%clk
0:01:21.6]} 43. Rxg5 {[%clk 0:00:45.2]} 43... a4 {[%clk 0:01:23.1]} 44. Rg8
{[%clk 0:00:45.4]} 44... Rb1 {[%clk 0:01:10.5]} 45. Ra8 {[%clk 0:00:43.1]} 45...
Rc1+ {[%clk 0:01:09.6]} 46. Kd2 {[%clk 0:00:33.6]} 46... Rg1 {[%clk 0:01:10.2]}
47. g3 {[%clk 0:00:27.4]} 47... Kb5 {[%clk 0:01:11.3]} 48. h4 {[%clk 0:00:26.7]}
48... Kb4 {[%clk 0:01:06.9]} 49. Rb8+ {[%clk 0:00:27.7]} 49... Kc4 {[%clk
0:01:07.7]} 50. Ra8 {[%clk 0:00:27]} 50... Kb3 {[%clk 0:01:08.8]} 51. Rb8+
{[%clk 0:00:27.8]} 51... Kc4 {[%clk 0:01:09.9]} 52. Ra8 {[%clk 0:00:28]} 52...
Kb3 {[%clk 0:01:06.2]} 53. Rb8+ {[%clk 0:00:29]} 53... Kc4 {[%clk 0:00:48.8]}
1/2-1/2